[Event "Early-Titled-Tuesday-Blitz-October-10-2023"]
[Site "Chess.com"]
[Date "2023.10.10"]
[Round "7"]
[White "AsaHoffmann"]
[Black "Boxerandchessplayer"]
[Result "1/2-1/2"]
[WhiteElo "2386"]
[BlackElo "2180"]
[TimeControl "180+1"]
[EndTime "9:16:15 PDT"]
[Termination "Game drawn - insufficient material"]

1. d4 {[%clk 0:02:54]} 1... e6 {[%clk 0:03:00.9]} 2. e4 {[%clk 0:02:52.5]} 2...
d5 {[%clk 0:03:01.2]} 3. e5 {[%clk 0:02:50.6]} 3... c5 {[%clk 0:03:00.3]} 4. Nf3
{[%clk 0:02:48.9]} 4... Qb6 {[%clk 0:03:00.7]} 5. Bd3 {[%clk 0:02:44.7]} 5...
Nc6 {[%clk 0:03:00.8]} 6. O-O {[%clk 0:02:39.5]} 6... Bd7 {[%clk 0:02:58.5]} 7.
Nc3 {[%clk 0:02:35.1]} 7... cxd4 {[%clk 0:02:53.9]} 8. Nb5 {[%clk 0:02:32.5]}
8... a6 {[%clk 0:02:49.4]} 9. Nd6+ {[%clk 0:02:30.9]} 9... Bxd6 {[%clk
0:02:49.2]} 10. exd6 {[%clk 0:02:31]} 10... Nb4 {[%clk 0:02:41.1]} 11. Ne5
{[%clk 0:02:19.8]} 11... Nxd3 {[%clk 0:02:36.5]} 12. Qxd3 {[%clk 0:02:17.5]}
12... Qxd6 {[%clk 0:02:36.8]} 13. Qxd4 {[%clk 0:02:16.8]} 13... Nf6 {[%clk
0:02:35.1]} 14. Bf4 {[%clk 0:02:12.5]} 14... Qe7 {[%clk 0:02:28.5]} 15. Rfe1
{[%clk 0:02:11.3]} 15... O-O {[%clk 0:02:21.7]} 16. h3 {[%clk 0:02:10.9]} 16...
Rac8 {[%clk 0:02:17.1]} 17. c3 {[%clk 0:02:10.6]} 17... Rfd8 {[%clk 0:02:16.1]}
18. Rad1 {[%clk 0:02:10.3]} 18... Bb5 {[%clk 0:02:11.3]} 19. Bg5 {[%clk
0:02:08.3]} 19... h6 {[%clk 0:02:09.8]} 20. Bh4 {[%clk 0:02:08]} 20... Re8
{[%clk 0:01:56.8]} 21. Re3 {[%clk 0:02:07]} 21... Qc5 {[%clk 0:01:54.3]} 22.
Bxf6 {[%clk 0:02:00]} 22... Qxd4 {[%clk 0:01:50.8]} 23. Rxd4 {[%clk 0:01:59.1]}
23... gxf6 {[%clk 0:01:51]} 24. Rg3+ {[%clk 0:01:55.4]} 24... Kf8 {[%clk
0:01:49.6]} 25. Ng4 {[%clk 0:01:55.2]} 25... f5 {[%clk 0:01:42.8]} 26. Nxh6
{[%clk 0:01:51.2]} 26... Ke7 {[%clk 0:01:42]} 27. Rg7 {[%clk 0:01:50.4]} 27...
Rf8 {[%clk 0:01:42]} 28. g4 {[%clk 0:01:48]} 28... Kf6 {[%clk 0:01:40.9]} 29.
Rh7 {[%clk 0:01:41.1]} 29... Kg6 {[%clk 0:01:04.4]} 30. Rxf7 {[%clk 0:01:26]}
30... Rxf7 {[%clk 0:01:02.9]} 31. Nxf7 {[%clk 0:01:25.1]} 31... Kxf7 {[%clk
0:01:03.8]} 32. gxf5 {[%clk 0:01:24.9]} 32... Rg8+ {[%clk 0:00:58.5]} 33. Kh2
{[%clk 0:01:23]} 33... e5 {[%clk 0:00:41]} 34. Rxd5 {[%clk 0:01:16.6]} 34... Bc6
{[%clk 0:00:41.2]} 35. Rxe5 {[%clk 0:01:11.8]} 35... Kf6 {[%clk 0:00:39.7]} 36.
Rc5 {[%clk 0:01:08.2]} 36... Rg2+ {[%clk 0:00:36.6]} 37. Kh1 {[%clk 0:01:07.9]}
37... Rxf2+ {[%clk 0:00:37.3]} 38. Kg1 {[%clk 0:01:08.1]} 38... Rxf5 {[%clk
0:00:38]} 39. Rxf5+ {[%clk 0:01:03.6]} 39... Kxf5 {[%clk 0:00:37.9]} 40. Kf2
{[%clk 0:01:03.7]} 40... Kf4 {[%clk 0:00:37.6]} 41. h4 {[%clk 0:01:03.6]} 41...
Kg4 {[%clk 0:00:37.8]} 42. Ke3 {[%clk 0:01:03.6]} 42... Kxh4 {[%clk 0:00:38.3]}
43. Kd4 {[%clk 0:01:03.7]} 43... Kg5 {[%clk 0:00:39.1]} 44. Kc5 {[%clk
0:01:03.7]} 44... Kf6 {[%clk 0:00:39.4]} 45. c4 {[%clk 0:01:01.2]} 45... a5
{[%clk 0:00:15.3]} 46. b3 {[%clk 0:00:56.8]} 46... Ke6 {[%clk 0:00:14.5]} 47.
Kb6 {[%clk 0:00:55.5]} 47... Kd6 {[%clk 0:00:10.8]} 48. Kxa5 {[%clk 0:00:39.9]}
48... Kc5 {[%clk 0:00:10.4]} 49. a3 {[%clk 0:00:35.3]} 49... Bd7 {[%clk
0:00:04.9]} 50. a4 {[%clk 0:00:30.7]} 50... Bc6 {[%clk 0:00:04.5]} 51. b4+
{[%clk 0:00:28.7]} 51... Kxc4 {[%clk 0:00:05.1]} 52. b5 {[%clk 0:00:27]} 52...
Bf3 {[%clk 0:00:05.2]} 53. Kb6 {[%clk 0:00:27.1]} 53... Kb4 {[%clk 0:00:02.5]}
54. a5 {[%clk 0:00:26.9]} 54... Ka4 {[%clk 0:00:01.9]} 55. a6 {[%clk 0:00:26.6]}
55... bxa6 {[%clk 0:00:02.8]} 56. bxa6 {[%clk 0:00:26.2]} 56... Kb4 {[%clk
0:00:03.4]} 57. a7 {[%clk 0:00:26.1]} 57... Ka4 {[%clk 0:00:03.7]} 58. Kc7
{[%clk 0:00:25.8]} 58... Ka5 {[%clk 0:00:03.3]} 59. Kb8 {[%clk 0:00:25.5]} 59...
Kb6 {[%clk 0:00:03.7]} 60. a8=N+ {[%clk 0:00:24.2]} 1/2-1/2

[Event "Early-Titled-Tuesday-Blitz-October-10-2023"]
[Site "Chess.com"]
[Date "2023.10.10"]
[Round "7"]
[White "Grossboss19"]
[Black "KatakuriDono"]
[Result "1-0"]
[WhiteElo "2514"]
[BlackElo "2326"]
[TimeControl "180+1"]
[EndTime "9:16:21 PDT"]
[Termination "Grossboss19 won by resignation"]

1. e4 {[%clk 0:02:56.7]} 1... e5 {[%clk 0:02:59.9]} 2. Nf3 {[%clk 0:02:56.6]}
2... Nc6 {[%clk 0:03:00.3]} 3. Bc4 {[%clk 0:02:56.1]} 3... Nf6 {[%clk 0:03:00]}
4. O-O {[%clk 0:02:56.1]} 4... Be7 {[%clk 0:02:59.5]} 5. Nc3 {[%clk 0:02:55.9]}
5... O-O {[%clk 0:02:57.1]} 6. d4 {[%clk 0:02:55.4]} 6... exd4 {[%clk
0:02:52.3]} 7. Nxd4 {[%clk 0:02:55.2]} 7... d6 {[%clk 0:02:51.8]} 8. Re1 {[%clk
0:02:51.6]} 8... Ne5 {[%clk 0:02:43]} 9. Bf1 {[%clk 0:02:49]} 9... Re8 {[%clk
0:02:41]} 10. f3 {[%clk 0:02:47.1]} 10... Bf8 {[%clk 0:02:37.6]} 11. Be3 {[%clk
0:02:45.8]} 11... a6 {[%clk 0:02:36.6]} 12. Bf2 {[%clk 0:02:42.3]} 12... c5
{[%clk 0:02:35.7]} 13. Nb3 {[%clk 0:02:37]} 13... b5 {[%clk 0:02:35.8]} 14. a4
{[%clk 0:02:25.4]} 14... b4 {[%clk 0:02:34.8]} 15. Nd5 {[%clk 0:02:21.6]} 15...
Nxd5 {[%clk 0:02:34.6]} 16. Qxd5 {[%clk 0:02:11.4]} 16... Be6 {[%clk 0:02:33.8]}
17. Qd2 {[%clk 0:02:10.4]} 17... Qf6 {[%clk 0:02:24.8]} 18. Bg3 {[%clk
0:01:54.9]} 18... h5 {[%clk 0:02:19]} 19. Qf4 {[%clk 0:01:51.8]} 19... Qxf4
{[%clk 0:02:07.1]} 20. Bxf4 {[%clk 0:01:50.4]} 20... Bxb3 {[%clk 0:02:00.3]} 21.
cxb3 {[%clk 0:01:48]} 21... Re6 {[%clk 0:01:49.9]} 22. Red1 {[%clk 0:01:44.3]}
22... Nc6 {[%clk 0:01:44.7]} 23. Bc4 {[%clk 0:01:34.3]} 23... Rg6 {[%clk
0:01:44.5]} 24. Bd5 {[%clk 0:01:29.6]} 24... Rc8 {[%clk 0:01:44.4]} 25. Bxc6
{[%clk 0:01:30.1]} 25... Rxc6 {[%clk 0:01:44.6]} 26. Rac1 {[%clk 0:01:28]} 26...
h4 {[%clk 0:01:39.9]} 27. h3 {[%clk 0:01:24.9]} 27... Re6 {[%clk 0:01:31.2]} 28.
Rd5 {[%clk 0:01:22.1]} 28... Be7 {[%clk 0:01:27.2]} 29. Rcd1 {[%clk 0:01:09.1]}
29... f6 {[%clk 0:01:24.4]} 30. Kf1 {[%clk 0:01:06.2]} 30... Kf7 {[%clk
0:01:24.1]} 31. Rc1 {[%clk 0:01:05.2]} 31... a5 {[%clk 0:01:14.8]} 32. Ke2
{[%clk 0:01:04.9]} 32... g5 {[%clk 0:01:14.2]} 33. Be3 {[%clk 0:01:03]} 33...
Re5 {[%clk 0:01:14.1]} 34. Rxe5 {[%clk 0:00:50]} 34... dxe5 {[%clk 0:01:14.2]}
35. Kd3 {[%clk 0:00:47.1]} 35... Ke6 {[%clk 0:01:06.1]} 36. Kc4 {[%clk
0:00:46.8]} 36... f5 {[%clk 0:00:55.4]} 37. Kb5 {[%clk 0:00:40]} 37... Rc8
{[%clk 0:00:51.9]} 38. Bxc5 {[%clk 0:00:32.8]} 38... fxe4 {[%clk 0:00:42.6]} 39.
fxe4 {[%clk 0:00:31.7]} 39... Bd6 {[%clk 0:00:33.4]} 40. Rc4 {[%clk 0:00:27.5]}
40... Bxc5 {[%clk 0:00:30.3]} 41. Rxc5 {[%clk 0:00:26.6]} 41... Rf8 {[%clk
0:00:30.1]} 42. Rc2 {[%clk 0:00:23.5]} 42... Ra8 {[%clk 0:00:26.4]} 43. Kb6
{[%clk 0:00:20.5]} 43... Kf6 {[%clk 0:00:23.8]} 44. Rc5 {[%clk 0:00:19.6]} 44...
Rd8 {[%clk 0:00:21.3]} 45. Rc2 {[%clk 0:00:19.6]} 45... Rd4 {[%clk 0:00:20.7]}
46. Re2 {[%clk 0:00:18.5]} 46... g4 {[%clk 0:00:21]} 47. hxg4 {[%clk 0:00:18.5]}
47... Kg5 {[%clk 0:00:21.4]} 48. Kxa5 {[%clk 0:00:19]} 48... Kxg4 {[%clk
0:00:21.9]} 49. Kb6 {[%clk 0:00:18.9]} 49... Kf4 {[%clk 0:00:19.2]} 50. a5
{[%clk 0:00:19]} 50... Rd6+ {[%clk 0:00:15.8]} 51. Kb7 {[%clk 0:00:18.3]} 51...
Rd7+ {[%clk 0:00:15.9]} 52. Kc6 {[%clk 0:00:18.7]} 52... Ra7 {[%clk 0:00:15.5]}
53. Kb6 {[%clk 0:00:19.3]} 53... Rg7 {[%clk 0:00:15.1]} 54. a6 {[%clk
0:00:20.2]} 54... Rg6+ {[%clk 0:00:14.9]} 55. Kb7 {[%clk 0:00:19.5]} 55... Rg7+
{[%clk 0:00:15]} 56. Kb6 {[%clk 0:00:19.9]} 56... Rg6+ {[%clk 0:00:15.4]} 57.
Kb5 {[%clk 0:00:20.3]} 57... Rg7 {[%clk 0:00:15.5]} 58. Kxb4 {[%clk 0:00:18.8]}
58... Kg3 {[%clk 0:00:12.3]} 59. Ka5 {[%clk 0:00:18.4]} 59... Rf7 {[%clk
0:00:11.8]} 60. b4 {[%clk 0:00:17.9]} 60... Rf1 {[%clk 0:00:08.2]} 61. a7 {[%clk
0:00:16.5]} 61... Ra1+ {[%clk 0:00:07.6]} 62. Kb6 {[%clk 0:00:17.2]} 62... h3
{[%clk 0:00:06.4]} 63. gxh3 {[%clk 0:00:17.1]} 1-0

[Event "Early-Titled-Tuesday-Blitz-October-10-2023"]
[Site "Chess.com"]
[Date "2023.10.10"]
[Round "7"]
[White "ActorXu"]
[Black "amanmuhammethommadov"]
[Result "1-0"]
[WhiteElo "2740"]
[BlackElo "2597"]
[TimeControl "180+1"]
[EndTime "9:16:23 PDT"]
[Termination "ActorXu won by resignation"]

1. e4 {[%clk 0:03:00.9]} 1... c5 {[%clk 0:02:59.8]} 2. Nf3 {[%clk 0:03:00.6]}
2... Nc6 {[%clk 0:03:00.2]} 3. Bb5 {[%clk 0:02:59.9]} 3... e6 {[%clk 0:03:00.3]}
4. O-O {[%clk 0:02:58.9]} 4... Nge7 {[%clk 0:03:00.2]} 5. Re1 {[%clk 0:02:59]}
5... a6 {[%clk 0:03:00.4]} 6. Bf1 {[%clk 0:02:57.8]} 6... d5 {[%clk 0:02:53.6]}
7. exd5 {[%clk 0:02:57.6]} 7... Nxd5 {[%clk 0:02:53.8]} 8. d4 {[%clk 0:02:57.3]}
8... Nf6 {[%clk 0:02:54.2]} 9. Be3 {[%clk 0:02:56.6]} 9... cxd4 {[%clk
0:02:53.8]} 10. Nxd4 {[%clk 0:02:56.9]} 10... Bd7 {[%clk 0:02:54.5]} 11. c4
{[%clk 0:02:56.4]} 11... Qc7 {[%clk 0:02:54.7]} 12. h3 {[%clk 0:02:53.5]} 12...
Bd6 {[%clk 0:02:51.3]} 13. Nc3 {[%clk 0:02:49.3]} 13... Ne7 {[%clk 0:02:51.2]}
14. Rc1 {[%clk 0:02:43.1]} 14... Rd8 {[%clk 0:02:46.1]} 15. a3 {[%clk
0:02:40.9]} 15... Bf4 {[%clk 0:02:45.2]} 16. Qd2 {[%clk 0:02:33.8]} 16... Bxe3
{[%clk 0:02:44]} 17. Qxe3 {[%clk 0:02:33.8]} 17... O-O {[%clk 0:02:43.1]} 18. b4
{[%clk 0:02:34.1]} 18... Ng6 {[%clk 0:02:35.1]} 19. c5 {[%clk 0:02:25]} 19...
Rfe8 {[%clk 0:02:34.8]} 20. a4 {[%clk 0:02:15.9]} 20... e5 {[%clk 0:02:34.9]}
21. Nb3 {[%clk 0:02:15.5]} 21... Be6 {[%clk 0:02:34.1]} 22. Nd2 {[%clk
0:02:11.2]} 22... Rd4 {[%clk 0:02:32.8]} 23. b5 {[%clk 0:02:05.9]} 23... Qxc5
{[%clk 0:02:11.5]} 24. Ne2 {[%clk 0:02:00.8]} 24... Qb4 {[%clk 0:02:11.3]} 25.
Nxd4 {[%clk 0:02:00.6]} 25... exd4 {[%clk 0:02:12.2]} 26. Qd3 {[%clk 0:02:00.3]}
26... Nf4 {[%clk 0:01:44]} 27. Qc2 {[%clk 0:02:00.1]} 27... d3 {[%clk
0:01:37.2]} 28. Qc3 {[%clk 0:01:35.3]} 28... Qxa4 {[%clk 0:01:36]} 29. bxa6
{[%clk 0:01:34.8]} 29... bxa6 {[%clk 0:01:36.1]} 30. Bxd3 {[%clk 0:01:32.7]}
30... Rd8 {[%clk 0:01:23.9]} 31. Bf1 {[%clk 0:01:25.6]} 31... N6d5 {[%clk
0:01:10.3]} 32. Qa1 {[%clk 0:01:20.6]} 32... Qb4 {[%clk 0:01:08.1]} 33. Nf3
{[%clk 0:01:17.2]} 33... a5 {[%clk 0:01:07.8]} 34. Nd4 {[%clk 0:01:15.5]} 34...
a4 {[%clk 0:00:53.1]} 35. Nc6 {[%clk 0:01:15.4]} 35... Qd6 {[%clk 0:00:43.2]}
36. Nxd8 {[%clk 0:01:15.1]} 36... Qxd8 {[%clk 0:00:44]} 37. Qxa4 {[%clk
0:01:15.2]} 37... h6 {[%clk 0:00:43.3]} 38. g3 {[%clk 0:01:10.4]} 38... Qg5
{[%clk 0:00:32.5]} 39. Kh2 {[%clk 0:00:52.1]} 39... Ng6 {[%clk 0:00:29.9]} 40.
Bg2 {[%clk 0:00:46.6]} 40... Nf6 {[%clk 0:00:28.9]} 41. Qa8+ {[%clk 0:00:44.8]}
41... Kh7 {[%clk 0:00:28.9]} 42. Qf3 {[%clk 0:00:45.1]} 42... Qd2 {[%clk
0:00:26.4]} 43. Qe3 {[%clk 0:00:43.7]} 43... Qb2 {[%clk 0:00:25.6]} 44. Qe2
{[%clk 0:00:36.9]} 44... Qb6 {[%clk 0:00:25.2]} 45. Qc2 {[%clk 0:00:35.4]} 45...
Qd4 {[%clk 0:00:24]} 46. Rcd1 {[%clk 0:00:34.6]} 46... Qa7 {[%clk 0:00:22.6]}
47. Re3 {[%clk 0:00:34.4]} 47... Qb6 {[%clk 0:00:21.8]} 48. Rde1 {[%clk
0:00:34.5]} 48... Bd7 {[%clk 0:00:20.4]} 49. Be4 {[%clk 0:00:30.3]} 49... Nxe4
{[%clk 0:00:19.3]} 50. Qxe4 {[%clk 0:00:30.9]} 50... h5 {[%clk 0:00:12.1]} 51.
Qd5 {[%clk 0:00:29.3]} 51... Qf6 {[%clk 0:00:12.1]} 52. Qxh5+ {[%clk 0:00:28]}
52... Kg8 {[%clk 0:00:10.9]} 53. Re8+ {[%clk 0:00:27.7]} 53... Bxe8 {[%clk
0:00:11.8]} 54. Rxe8+ {[%clk 0:00:28.1]} 54... Nf8 {[%clk 0:00:12.7]} 55. Qc5
{[%clk 0:00:28.6]} 55... Kh7 {[%clk 0:00:11.5]} 56. Rxf8 {[%clk 0:00:28.4]}
56... Qxf2+ {[%clk 0:00:12.4]} 57. Qxf2 {[%clk 0:00:28]} 1-0

[Event "Early-Titled-Tuesday-Blitz-October-10-2023"]
[Site "Chess.com"]
[Date "2023.10.10"]
[Round "7"]
[White "karwowskikacper"]
[Black "Druid24"]
[Result "0-1"]
[WhiteElo "2550"]
[BlackElo "2726"]
[TimeControl "180+1"]
[EndTime "9:16:25 PDT"]
[Termination "Druid24 won by resignation"]

1. e4 {[%clk 0:03:00.8]} 1... c5 {[%clk 0:03:00]} 2. Nf3 {[%clk 0:02:59]} 2...
d6 {[%clk 0:03:00.4]} 3. d4 {[%clk 0:02:58.6]} 3... cxd4 {[%clk 0:03:01.3]} 4.
Nxd4 {[%clk 0:02:59.5]} 4... Nf6 {[%clk 0:03:01.8]} 5. Nc3 {[%clk 0:03:00.1]}
5... Nc6 {[%clk 0:03:02.4]} 6. Bg5 {[%clk 0:02:57.8]} 6... e6 {[%clk 0:03:02.4]}
7. Qd2 {[%clk 0:02:55.3]} 7... a6 {[%clk 0:03:02.4]} 8. O-O-O {[%clk 0:02:52.7]}
8... Bd7 {[%clk 0:03:02.9]} 9. f4 {[%clk 0:02:52.7]} 9... b5 {[%clk 0:03:02.9]}
10. Bxf6 {[%clk 0:02:51.8]} 10... gxf6 {[%clk 0:03:01.1]} 11. Kb1 {[%clk
0:02:51.6]} 11... Qb6 {[%clk 0:02:54.5]} 12. Nxc6 {[%clk 0:02:51.1]} 12... Bxc6
{[%clk 0:02:55.4]} 13. f5 {[%clk 0:02:51.4]} 13... Qc5 {[%clk 0:02:51.5]} 14.
Bd3 {[%clk 0:02:34]} 14... h5 {[%clk 0:02:46.2]} 15. Ne2 {[%clk 0:02:11.8]}
15... Bh6 {[%clk 0:02:34.2]} 16. Qc3 {[%clk 0:02:11.1]} 16... Qxc3 {[%clk
0:02:28.3]} 17. bxc3 {[%clk 0:02:12]} 17... Ke7 {[%clk 0:02:26.5]} 18. Nd4
{[%clk 0:02:08.7]} 18... Bd7 {[%clk 0:02:21.2]} 19. Be2 {[%clk 0:02:00.6]} 19...
Bf4 {[%clk 0:02:19.4]} 20. h3 {[%clk 0:01:51.3]} 20... Be5 {[%clk 0:02:17.6]}
21. g4 {[%clk 0:01:49.9]} 21... h4 {[%clk 0:02:13.8]} 22. Rd3 {[%clk 0:01:46.3]}
22... Rac8 {[%clk 0:02:13.1]} 23. Rhd1 {[%clk 0:01:39.4]} 23... Rc5 {[%clk
0:02:09.1]} 24. Nf3 {[%clk 0:01:01.5]} 24... Bf4 {[%clk 0:02:08.1]} 25. Kb2
{[%clk 0:00:48.5]} 25... Bc6 {[%clk 0:02:06.5]} 26. Nd2 {[%clk 0:00:39.8]} 26...
Rc8 {[%clk 0:02:03.8]} 27. Nb3 {[%clk 0:00:39.7]} 27... Rc4 {[%clk 0:02:01]} 28.
Na5 {[%clk 0:00:24.6]} 28... Bxe4 {[%clk 0:01:46.6]} 29. Nxc4 {[%clk 0:00:24.5]}
29... bxc4 {[%clk 0:01:30.5]} 30. Rd4 {[%clk 0:00:24.1]} 30... d5 {[%clk
0:01:30.3]} 31. Bxc4 {[%clk 0:00:24.2]} 31... Be5 {[%clk 0:01:20.4]} 32. Bb3
{[%clk 0:00:10]} 32... Bxd4 {[%clk 0:01:16.1]} 33. cxd4 {[%clk 0:00:10.9]} 33...
exf5 {[%clk 0:01:09.4]} 34. gxf5 {[%clk 0:00:11.8]} 34... Rg8 {[%clk 0:01:08.2]}
35. Re1 {[%clk 0:00:11.6]} 35... Kd6 {[%clk 0:00:59.9]} 36. c4 {[%clk
0:00:11.6]} 36... Rg2+ {[%clk 0:00:57.1]} 37. Kc3 {[%clk 0:00:10.7]} 37... Rg3+
{[%clk 0:00:56.6]} 38. Kb4 {[%clk 0:00:11.1]} 38... Rxh3 {[%clk 0:00:52.5]} 39.
cxd5 {[%clk 0:00:10.8]} 39... Bxf5 {[%clk 0:00:48.1]} 40. Rf1 {[%clk 0:00:07.8]}
40... Bd3 {[%clk 0:00:38.3]} 41. Rxf6+ {[%clk 0:00:08.7]} 41... Ke7 {[%clk
0:00:39.2]} 42. Rf4 {[%clk 0:00:08.8]} 42... Rh1 {[%clk 0:00:35.7]} 43. d6+
{[%clk 0:00:08.8]} 43... Kxd6 {[%clk 0:00:36.3]} 44. Rxf7 {[%clk 0:00:09.7]}
44... h3 {[%clk 0:00:35.3]} 45. Rf6+ {[%clk 0:00:10]} 45... Ke7 {[%clk
0:00:33.9]} 46. Rh6 {[%clk 0:00:10.5]} 46... Bf5 {[%clk 0:00:25.6]} 47. Bd5
{[%clk 0:00:09.5]} 47... Rc1 {[%clk 0:00:22.4]} 48. a4 {[%clk 0:00:05.6]} 48...
Rc2 {[%clk 0:00:19.4]} 49. Ka5 {[%clk 0:00:04.7]} 49... Rd2 {[%clk 0:00:18.7]}
50. Kxa6 {[%clk 0:00:04]} 50... Rxd4 {[%clk 0:00:19.3]} 51. Bc6 {[%clk
0:00:02.9]} 51... Rd6 {[%clk 0:00:18.1]} 52. Rxd6 {[%clk 0:00:02.8]} 52... Kxd6
{[%clk 0:00:19]} 53. Kb6 {[%clk 0:00:03.2]} 53... Bd7 {[%clk 0:00:15.9]} 54. Bf3
{[%clk 0:00:01.9]} 54... Bxa4 {[%clk 0:00:15.6]} 55. Ka5 {[%clk 0:00:02.5]}
55... Bc6 {[%clk 0:00:14.3]} 0-1

[Event "Early-Titled-Tuesday-Blitz-October-10-2023"]
[Site "Chess.com"]
[Date "2023.10.10"]
[Round "7"]
[White "gueraumasague"]
[Black "ZeGood_ZeBad_ZeUgly"]
[Result "1-0"]
[WhiteElo "2510"]
[BlackElo "2325"]
[TimeControl "180+1"]
[EndTime "9:16:29 PDT"]
[Termination "gueraumasague won by checkmate"]

1. e4 {[%clk 0:03:00.9]} 1... e5 {[%clk 0:02:58.2]} 2. Nc3 {[%clk 0:03:01.8]}
2... Nf6 {[%clk 0:02:56.7]} 3. f4 {[%clk 0:03:02.5]} 3... d5 {[%clk 0:02:55.7]}
4. fxe5 {[%clk 0:03:02.8]} 4... Nxe4 {[%clk 0:02:55.8]} 5. Qf3 {[%clk
0:03:03.5]} 5... Nxc3 {[%clk 0:02:55.5]} 6. dxc3 {[%clk 0:03:04.4]} 6... Be6
{[%clk 0:02:54.7]} 7. Bf4 {[%clk 0:03:03.3]} 7... Nd7 {[%clk 0:02:54.2]} 8.
O-O-O {[%clk 0:03:03.5]} 8... Be7 {[%clk 0:02:53.4]} 9. Qg3 {[%clk 0:03:02.3]}
9... g5 {[%clk 0:02:49.5]} 10. Be3 {[%clk 0:03:01.5]} 10... c6 {[%clk
0:02:43.5]} 11. Nf3 {[%clk 0:03:01]} 11... h6 {[%clk 0:02:41.5]} 12. h4 {[%clk
0:02:59.8]} 12... g4 {[%clk 0:02:31.6]} 13. Nd4 {[%clk 0:02:59.8]} 13... h5
{[%clk 0:02:27.8]} 14. Bd3 {[%clk 0:02:29.6]} 14... Qc7 {[%clk 0:02:25.9]} 15.
Nxe6 {[%clk 0:02:25.1]} 15... fxe6 {[%clk 0:02:24]} 16. Bg6+ {[%clk 0:02:25.4]}
16... Kd8 {[%clk 0:02:15.4]} 17. Rhf1 {[%clk 0:01:51]} 17... Qxe5 {[%clk
0:01:37.4]} 18. Bf4 {[%clk 0:01:49.1]} 18... Qg7 {[%clk 0:01:36.8]} 19. Qd3
{[%clk 0:01:13.4]} 19... e5 {[%clk 0:01:32.5]} 20. Bg3 {[%clk 0:01:08]} 20...
Rh6 {[%clk 0:01:18.4]} 21. Bf5 {[%clk 0:00:53.6]} 21... Rd6 {[%clk 0:00:56.2]}
22. Qe3 {[%clk 0:00:38.6]} 22... Bf6 {[%clk 0:00:47.5]} 23. Rfe1 {[%clk
0:00:28.5]} 23... Kc7 {[%clk 0:00:25.4]} 24. c4 {[%clk 0:00:27.4]} 24... d4
{[%clk 0:00:22.6]} 25. Qa3 {[%clk 0:00:27.9]} 25... Be7 {[%clk 0:00:15.1]} 26.
Bxd7 {[%clk 0:00:20]} 26... Rxd7 {[%clk 0:00:16]} 27. Qa5+ {[%clk 0:00:19.8]}
27... b6 {[%clk 0:00:14.5]} 28. Bxe5+ {[%clk 0:00:19.3]} 28... Bd6 {[%clk
0:00:10.8]} 29. Bxg7 {[%clk 0:00:13.6]} 29... bxa5 {[%clk 0:00:10.5]} 30. Bxd4
{[%clk 0:00:13.9]} 30... Bg3 {[%clk 0:00:10]} 31. Re6 {[%clk 0:00:14]} 31...
Rad8 {[%clk 0:00:06.2]} 32. Be5+ {[%clk 0:00:10.7]} 32... Bxe5 {[%clk
0:00:06.2]} 33. Rxd7+ {[%clk 0:00:11.6]} 33... Rxd7 {[%clk 0:00:05.3]} 34. Rxe5
{[%clk 0:00:12.5]} 34... Rd4 {[%clk 0:00:04.9]} 35. Rxh5 {[%clk 0:00:12.2]}
35... Rxc4 {[%clk 0:00:04.8]} 36. Rxa5 {[%clk 0:00:12.9]} 36... g3 {[%clk
0:00:03.9]} 37. Rxa7+ {[%clk 0:00:11.5]} 37... Kb6 {[%clk 0:00:03.5]} 38. Rg7
{[%clk 0:00:12.1]} 38... Rxh4 {[%clk 0:00:02.9]} 39. Rxg3 {[%clk 0:00:12.8]}
39... Rh1+ {[%clk 0:00:03.2]} 40. Kd2 {[%clk 0:00:13.4]} 40... Rf1 {[%clk
0:00:04.1]} 41. Kc3 {[%clk 0:00:13.8]} 41... Ra1 {[%clk 0:00:04.1]} 42. a3
{[%clk 0:00:14.3]} 42... Rf1 {[%clk 0:00:04.7]} 43. Kb3 {[%clk 0:00:14.7]} 43...
Rf2 {[%clk 0:00:04.6]} 44. c3 {[%clk 0:00:15.2]} 44... c5 {[%clk 0:00:05]} 45.
Rg5 {[%clk 0:00:14.9]} 45... Kb5 {[%clk 0:00:05.7]} 46. a4+ {[%clk 0:00:15.4]}
46... Kb6 {[%clk 0:00:05.7]} 47. a5+ {[%clk 0:00:14.6]} 47... Kb5 {[%clk
0:00:05.9]} 48. g4 {[%clk 0:00:14.7]} 48... Rf6 {[%clk 0:00:05.7]} 49. Ka3
{[%clk 0:00:13.4]} 49... Ra6 {[%clk 0:00:05.8]} 50. b4 {[%clk 0:00:13.6]} 50...
Re6 {[%clk 0:00:03.1]} 51. Rxc5+ {[%clk 0:00:14.5]} 51... Ka6 {[%clk 0:00:03.7]}
52. g5 {[%clk 0:00:15]} 52... Rg6 {[%clk 0:00:03.3]} 53. Ka4 {[%clk 0:00:15.4]}
53... Re6 {[%clk 0:00:03.1]} 54. b5+ {[%clk 0:00:16.3]} 54... Ka7 {[%clk
0:00:03.7]} 55. Kb4 {[%clk 0:00:16.8]} 55... Re4+ {[%clk 0:00:03.7]} 56. c4
{[%clk 0:00:17.4]} 56... Re1 {[%clk 0:00:04.6]} 57. Rc7+ {[%clk 0:00:18]} 57...
Kb8 {[%clk 0:00:04.6]} 58. b6 {[%clk 0:00:18.6]} 58... Rb1+ {[%clk 0:00:05.4]}
59. Kc5 {[%clk 0:00:19.1]} 59... Rh1 {[%clk 0:00:06.1]} 60. Kc6 {[%clk
0:00:17.9]} 60... Rh5 {[%clk 0:00:06.2]} 61. Rg7 {[%clk 0:00:17.9]} 61... Rh8
{[%clk 0:00:03.7]} 62. a6 {[%clk 0:00:18]} 62... Rc8+ {[%clk 0:00:04]} 63. Kb5
{[%clk 0:00:18.5]} 63... Rd8 {[%clk 0:00:04.3]} 64. a7+ {[%clk 0:00:18.7]} 64...
Ka8 {[%clk 0:00:04.8]} 65. Ka6 {[%clk 0:00:17.9]} 65... Rd7 {[%clk 0:00:03]} 66.
Rg8+ {[%clk 0:00:17.5]} 66... Rd8 {[%clk 0:00:03.1]} 67. Rxd8# {[%clk
0:00:18.4]} 1-0